[Event "Early-Titled-Tuesday-Blitz-May-07-2024"]
[Site "Chess.com"]
[Date "2024.05.07"]
[Round "8"]
[White "ReinisUz"]
[Black "Silent-Killer100"]
[Result "1-0"]
[WhiteElo "2450"]
[BlackElo "2547"]
[TimeControl "180+1"]
[EndTime "9:34:55 PDT"]
[Termination "ReinisUz won by resignation"]

1. c4 {[%clk 0:03:00.9]} 1... b6 {[%clk 0:02:58.1]} 2. Nc3 {[%clk 0:02:59.7]}
2... Bb7 {[%clk 0:02:58.1]} 3. d4 {[%clk 0:03:00.3]} 3... Nf6 {[%clk 0:02:58]}
4. d5 {[%clk 0:02:59.7]} 4... e6 {[%clk 0:02:58.1]} 5. e4 {[%clk 0:02:59]} 5...
exd5 {[%clk 0:02:58.5]} 6. exd5 {[%clk 0:02:59.2]} 6... Bb4 {[%clk 0:02:56.1]}
7. Ne2 {[%clk 0:02:58]} 7... O-O {[%clk 0:02:53.7]} 8. g3 {[%clk 0:02:58.1]}
8... c6 {[%clk 0:02:53.5]} 9. Bg2 {[%clk 0:02:55.8]} 9... cxd5 {[%clk
0:02:53.3]} 10. cxd5 {[%clk 0:02:56.7]} 10... Re8 {[%clk 0:02:53.3]} 11. O-O
{[%clk 0:02:56.3]} 11... Ba6 {[%clk 0:02:53.8]} 12. Re1 {[%clk 0:02:47.1]} 12...
Bxc3 {[%clk 0:02:23.3]} 13. Nxc3 {[%clk 0:02:44.4]} 13... d6 {[%clk 0:02:24]}
14. Bg5 {[%clk 0:02:43.2]} 14... Nbd7 {[%clk 0:02:23.5]} 15. Qd4 {[%clk
0:02:40.4]} 15... h6 {[%clk 0:02:14]} 16. Bf4 {[%clk 0:02:38.1]} 16... Nc5
{[%clk 0:02:04.9]} 17. Rxe8+ {[%clk 0:02:36.9]} 17... Nxe8 {[%clk 0:02:05.8]}
18. Ne4 {[%clk 0:02:23]} 18... Qd7 {[%clk 0:02:01.4]} 19. Re1 {[%clk 0:02:13.6]}
19... Nd3 {[%clk 0:01:59.4]} 20. Re3 {[%clk 0:02:05.6]} 20... Nxf4 {[%clk
0:01:57.8]} 21. gxf4 {[%clk 0:02:06.5]} 21... Rc8 {[%clk 0:01:56.7]} 22. h3
{[%clk 0:02:00.2]} 22... Qf5 {[%clk 0:01:49.8]} 23. Rg3 {[%clk 0:01:57.4]} 23...
Kf8 {[%clk 0:01:29.8]} 24. h4 {[%clk 0:01:48.8]} 24... Qxf4 {[%clk 0:01:25.1]}
25. h5 {[%clk 0:01:08.7]} 25... Rc4 {[%clk 0:01:20]} 26. Qe3 {[%clk 0:00:59]}
26... Qe5 {[%clk 0:01:13.4]} 27. Bf3 {[%clk 0:00:34.6]} 27... Qxb2 {[%clk
0:01:07]} 28. Qf4 {[%clk 0:00:20.3]} 28... Qc1+ {[%clk 0:00:49.7]} 29. Qxc1
{[%clk 0:00:19.1]} 29... Rxc1+ {[%clk 0:00:50.6]} 30. Kg2 {[%clk 0:00:18.9]}
30... Rc2 {[%clk 0:00:51.5]} 31. Bg4 {[%clk 0:00:16.8]} 31... Rxa2 {[%clk
0:00:48.8]} 32. Rc3 {[%clk 0:00:17.3]} 32... Ra4 {[%clk 0:00:40.6]} 33. f3
{[%clk 0:00:14.7]} 33... Ra2+ {[%clk 0:00:36.3]} 34. Kg3 {[%clk 0:00:14.5]}
34... g5 {[%clk 0:00:30.9]} 35. Bd7 {[%clk 0:00:07.1]} 35... Bf1 {[%clk
0:00:27.3]} 36. Bxe8 {[%clk 0:00:07.1]} 36... Rg2+ {[%clk 0:00:20.3]} 37. Kh3
{[%clk 0:00:07.5]} 37... Re2+ {[%clk 0:00:21.2]} 38. Kg4 {[%clk 0:00:08.2]}
38... Rg2+ {[%clk 0:00:22.1]} 39. Kf5 {[%clk 0:00:08.6]} 39... Rc2 {[%clk
0:00:23]} 40. Rxc2 {[%clk 0:00:08.2]} 40... Ke7 {[%clk 0:00:21.5]} 41. Rc7+
{[%clk 0:00:08.1]} 41... Kxe8 {[%clk 0:00:20.6]} 42. Rxa7 {[%clk 0:00:08.8]}
42... b5 {[%clk 0:00:19.4]} 43. Nxd6+ {[%clk 0:00:09]} 43... Kd8 {[%clk
0:00:17.9]} 44. Nxf7+ {[%clk 0:00:08.7]} 44... Ke8 {[%clk 0:00:18.2]} 45. Nxh6
{[%clk 0:00:09.2]} 45... Kf8 {[%clk 0:00:19.1]} 46. Kxg5 {[%clk 0:00:09.8]}
46... Ke8 {[%clk 0:00:19.7]} 47. Kf6 {[%clk 0:00:10.3]} 47... Kd8 {[%clk
0:00:20.6]} 48. Nf5 {[%clk 0:00:10.8]} 48... Kc8 {[%clk 0:00:21.5]} 49. Ra5
{[%clk 0:00:10.8]} 49... Kb8 {[%clk 0:00:22.4]} 50. Ra1 {[%clk 0:00:11.1]} 50...
Kc8 {[%clk 0:00:23.3]} 51. Rxf1 {[%clk 0:00:10.7]} 1-0

[Event "Early-Titled-Tuesday-Blitz-May-07-2024"]
[Site "Chess.com"]
[Date "2024.05.07"]
[Round "8"]
[White "Kostukov_Alex"]
[Black "Boxerandchessplayer"]
[Result "1-0"]
[WhiteElo "2369"]
[BlackElo "2240"]
[TimeControl "180+1"]
[EndTime "9:34:55 PDT"]
[Termination "Kostukov_Alex won by resignation"]

1. g3 {[%clk 0:02:59.3]} 1... e6 {[%clk 0:03:00.6]} 2. Bg2 {[%clk 0:03:00.1]}
2... d5 {[%clk 0:03:01.1]} 3. d3 {[%clk 0:03:00.4]} 3... Nf6 {[%clk 0:02:57.1]}
4. e4 {[%clk 0:03:01.3]} 4... dxe4 {[%clk 0:02:56.2]} 5. dxe4 {[%clk 0:03:02.2]}
5... Qxd1+ {[%clk 0:02:56]} 6. Kxd1 {[%clk 0:03:03.1]} 6... Nc6 {[%clk
0:02:47.8]} 7. f3 {[%clk 0:03:01.7]} 7... e5 {[%clk 0:02:43.3]} 8. Be3 {[%clk
0:03:00.6]} 8... Be6 {[%clk 0:02:43]} 9. Nd2 {[%clk 0:03:00.5]} 9... Be7 {[%clk
0:02:40.7]} 10. Bh3 {[%clk 0:02:59.9]} 10... Bxh3 {[%clk 0:02:36.9]} 11. Nxh3
{[%clk 0:03:00.8]} 11... O-O-O {[%clk 0:02:37.1]} 12. c3 {[%clk 0:03:01.1]}
12... Rhe8 {[%clk 0:02:33.1]} 13. Ke2 {[%clk 0:03:02]} 13... Nd7 {[%clk
0:02:32.4]} 14. b4 {[%clk 0:02:47.1]} 14... f6 {[%clk 0:02:31.5]} 15. a4 {[%clk
0:02:46.2]} 15... Kb8 {[%clk 0:01:51.8]} 16. Nf2 {[%clk 0:02:30.3]} 16... Bf8
{[%clk 0:01:50.8]} 17. h4 {[%clk 0:02:24.1]} 17... Ne7 {[%clk 0:01:49.5]} 18.
Nc4 {[%clk 0:02:06]} 18... Nc8 {[%clk 0:01:25.6]} 19. a5 {[%clk 0:02:01.4]}
19... Nd6 {[%clk 0:01:24.2]} 20. Nxd6 {[%clk 0:01:50.7]} 20... Bxd6 {[%clk
0:01:23.4]} 21. h5 {[%clk 0:01:43.1]} 21... h6 {[%clk 0:01:23.1]} 22. Ng4 {[%clk
0:01:37.3]} 22... Nf8 {[%clk 0:01:22.1]} 23. Bf2 {[%clk 0:01:34.4]} 23... Ne6
{[%clk 0:01:21.8]} 24. Ne3 {[%clk 0:01:34]} 24... Bf8 {[%clk 0:01:20.4]} 25. Nf5
{[%clk 0:01:33.3]} 25... Rd7 {[%clk 0:01:17]} 26. Rhf1 {[%clk 0:01:25.4]} 26...
Red8 {[%clk 0:01:16.6]} 27. Rfd1 {[%clk 0:01:26.3]} 27... a6 {[%clk 0:01:13.3]}
28. Re1 {[%clk 0:01:27.2]} 28... Rd2+ {[%clk 0:01:11.6]} 29. Kf1 {[%clk
0:01:26.8]} 29... Rc2 {[%clk 0:00:28.6]} 30. Rac1 {[%clk 0:01:13.9]} 30... Rdd2
{[%clk 0:00:21.2]} 31. Rxc2 {[%clk 0:01:03.2]} 31... Rxc2 {[%clk 0:00:22.1]} 32.
Re3 {[%clk 0:01:03.5]} 32... Kc8 {[%clk 0:00:22.4]} 33. Be1 {[%clk 0:01:02.8]}
33... c5 {[%clk 0:00:21]} 34. Re2 {[%clk 0:01:01.5]} 34... Rxe2 {[%clk 0:00:20]}
35. Kxe2 {[%clk 0:01:02.4]} 35... cxb4 {[%clk 0:00:20.9]} 36. cxb4 {[%clk
0:01:02.5]} 36... Kc7 {[%clk 0:00:20.8]} 37. Kd3 {[%clk 0:01:02.5]} 37... Kc6
{[%clk 0:00:21.3]} 38. Kc4 {[%clk 0:01:02.7]} 38... Ng5 {[%clk 0:00:17.6]} 39.
Nh4 {[%clk 0:01:00]} 39... Nf7 {[%clk 0:00:13.4]} 40. Bd2 {[%clk 0:00:57.6]}
40... Nd6+ {[%clk 0:00:12.9]} 41. Kb3 {[%clk 0:00:54.7]} 41... Nb5 {[%clk
0:00:12.6]} 42. Nf5 {[%clk 0:00:53.3]} 42... Nd6 {[%clk 0:00:10]} 43. Nxd6
{[%clk 0:00:49.6]} 43... Bxd6 {[%clk 0:00:10.5]} 44. Kc4 {[%clk 0:00:50.5]}
44... Be7 {[%clk 0:00:10]} 45. f4 {[%clk 0:00:50.6]} 45... Bd6 {[%clk
0:00:09.1]} 46. f5 {[%clk 0:00:44.4]} 46... Be7 {[%clk 0:00:08.8]} 47. Be3
{[%clk 0:00:44.9]} 47... Bd6 {[%clk 0:00:08.5]} 48. Bc5 {[%clk 0:00:44.5]} 48...
Bxc5 {[%clk 0:00:05.7]} 49. bxc5 {[%clk 0:00:45.4]} 49... Kc7 {[%clk 0:00:05.6]}
50. Kd5 {[%clk 0:00:44.4]} 50... Kd7 {[%clk 0:00:05.6]} 51. g4 {[%clk
0:00:42.5]} 51... Kc7 {[%clk 0:00:04.6]} 52. Ke6 {[%clk 0:00:42.4]} 52... Kc6
{[%clk 0:00:05.5]} 53. Kf7 {[%clk 0:00:42.8]} 53... Kxc5 {[%clk 0:00:06.4]} 54.
Kxg7 {[%clk 0:00:42.8]} 54... b6 {[%clk 0:00:07.3]} 55. g5 {[%clk 0:00:43.3]}
55... bxa5 {[%clk 0:00:07.4]} 56. gxf6 {[%clk 0:00:43.3]} 56... a4 {[%clk
0:00:08.3]} 57. f7 {[%clk 0:00:44.1]} 1-0

[Event "Early-Titled-Tuesday-Blitz-May-07-2024"]
[Site "Chess.com"]
[Date "2024.05.07"]
[Round "8"]
[White "Bilan_Danila"]
[Black "ClauSanLuis"]
[Result "0-1"]
[WhiteElo "2537"]
[BlackElo "2421"]
[TimeControl "180+1"]
[EndTime "9:34:56 PDT"]
[Termination "ClauSanLuis won by resignation"]

1. d4 {[%clk 0:03:00.9]} 1... Nf6 {[%clk 0:02:57.1]} 2. Nf3 {[%clk 0:03:00.6]}
2... e6 {[%clk 0:02:56.6]} 3. g3 {[%clk 0:03:00.1]} 3... c5 {[%clk 0:02:55.3]}
4. Bg2 {[%clk 0:03:01]} 4... Nc6 {[%clk 0:02:54.5]} 5. c4 {[%clk 0:02:59.6]}
5... d5 {[%clk 0:02:52.5]} 6. cxd5 {[%clk 0:02:58.5]} 6... Nxd5 {[%clk
0:02:51.7]} 7. O-O {[%clk 0:02:57.5]} 7... Be7 {[%clk 0:02:47.6]} 8. Nc3 {[%clk
0:02:28.2]} 8... Nxc3 {[%clk 0:02:43.1]} 9. bxc3 {[%clk 0:02:28.3]} 9... O-O
{[%clk 0:02:43.6]} 10. Bf4 {[%clk 0:02:17.4]} 10... Bd7 {[%clk 0:02:40.7]} 11.
Rb1 {[%clk 0:02:11.4]} 11... Qc8 {[%clk 0:02:34.1]} 12. Ne5 {[%clk 0:02:07.9]}
12... Rd8 {[%clk 0:02:20.8]} 13. Nxd7 {[%clk 0:01:33.9]} 13... Rxd7 {[%clk
0:02:19.5]} 14. d5 {[%clk 0:01:01.3]} 14... exd5 {[%clk 0:02:13.9]} 15. Bh3
{[%clk 0:00:58.5]} 15... Bf6 {[%clk 0:02:01.8]} 16. Bxd7 {[%clk 0:00:55.2]}
16... Qxd7 {[%clk 0:02:01.9]} 17. Qb3 {[%clk 0:00:55.8]} 17... Na5 {[%clk
0:01:50]} 18. Qa3 {[%clk 0:00:39.5]} 18... b6 {[%clk 0:01:44.5]} 19. Rbd1 {[%clk
0:00:35.2]} 19... Qe6 {[%clk 0:01:41.1]} 20. Rfe1 {[%clk 0:00:30.9]} 20... Re8
{[%clk 0:01:29.7]} 21. Qc1 {[%clk 0:00:20]} 21... h6 {[%clk 0:01:26]} 22. Qd2
{[%clk 0:00:08.1]} 22... g5 {[%clk 0:01:24.9]} 23. Be3 {[%clk 0:00:06.4]} 23...
Nc4 {[%clk 0:01:18.3]} 24. Qxd5 {[%clk 0:00:06.5]} 24... Nxe3 {[%clk 0:01:17.7]}
25. Qxe6 {[%clk 0:00:05.9]} 25... Rxe6 {[%clk 0:01:18.6]} 26. fxe3 {[%clk
0:00:05.6]} 26... Bxc3 {[%clk 0:01:18.5]} 27. Rd8+ {[%clk 0:00:03.5]} 27... Kg7
{[%clk 0:01:15.4]} 28. Rf1 {[%clk 0:00:04.1]} 28... Rxe3 {[%clk 0:00:57.8]} 29.
Rd7 {[%clk 0:00:03.7]} 29... Bf6 {[%clk 0:00:56.6]} 30. Kf2 {[%clk 0:00:02.5]}
30... Ra3 {[%clk 0:00:54.9]} 31. Rd2 {[%clk 0:00:02.2]} 31... Bd4+ {[%clk
0:00:53.2]} 32. Kg2 {[%clk 0:00:02]} 32... Kg6 {[%clk 0:00:51.2]} 33. e4 {[%clk
0:00:02.5]} 33... Re3 {[%clk 0:00:48.9]} 34. h4 {[%clk 0:00:01.6]} 34... Rxe4
{[%clk 0:00:48.9]} 35. hxg5 {[%clk 0:00:01.9]} 35... hxg5 {[%clk 0:00:49.8]} 36.
Rc2 {[%clk 0:00:01.5]} 36... f5 {[%clk 0:00:49.7]} 37. Kf3 {[%clk 0:00:01.9]}
37... Re3+ {[%clk 0:00:49.7]} 38. Kg2 {[%clk 0:00:02.4]} 38... Be5 {[%clk
0:00:49.9]} 39. g4 {[%clk 0:00:02.3]} 39... Rg3+ {[%clk 0:00:49.1]} 40. Kf2
{[%clk 0:00:02.3]} 40... Rxg4 {[%clk 0:00:50]} 41. Re2 {[%clk 0:00:02.3]} 41...
Bd4+ {[%clk 0:00:50.2]} 42. Ke1 {[%clk 0:00:03.2]} 42... Kf6 {[%clk 0:00:49.8]}
43. Kd2 {[%clk 0:00:03]} 43... Rg3 {[%clk 0:00:49]} 44. Rh2 {[%clk 0:00:03]}
44... Ra3 {[%clk 0:00:47.6]} 45. Kc1 {[%clk 0:00:03.4]} 45... f4 {[%clk
0:00:44.9]} 46. Rh6+ {[%clk 0:00:04]} 46... Kf5 {[%clk 0:00:45.1]} 47. Rh5
{[%clk 0:00:04.7]} 47... f3 {[%clk 0:00:44.1]} 48. Rh8 {[%clk 0:00:03.1]} 48...
f2 {[%clk 0:00:43.8]} 49. Rf8+ {[%clk 0:00:03.3]} 49... Ke4 {[%clk 0:00:43.5]}
50. Rh8 {[%clk 0:00:02.3]} 50... Rxa2 {[%clk 0:00:42.6]} 51. Rd8 {[%clk
0:00:01.4]} 51... Ra1+ {[%clk 0:00:42.3]} 52. Kd2 {[%clk 0:00:02.2]} 52... Rxf1
{[%clk 0:00:42.8]} 53. Re8+ {[%clk 0:00:02.9]} 0-1

[Event "Early-Titled-Tuesday-Blitz-May-07-2024"]
[Site "Chess.com"]
[Date "2024.05.07"]
[Round "8"]
[White "Giorno"]
[Black "AnnaChessLook"]
[Result "1-0"]
[WhiteElo "2545"]
[BlackElo "2298"]
[TimeControl "180+1"]
[EndTime "9:34:58 PDT"]
[Termination "Giorno won by resignation"]

1. d4 {[%clk 0:03:00.9]} 1... Nf6 {[%clk 0:02:54.6]} 2. c4 {[%clk 0:02:59.9]}
2... c5 {[%clk 0:02:53.7]} 3. Nf3 {[%clk 0:02:57.2]} 3... cxd4 {[%clk
0:02:53.4]} 4. Nxd4 {[%clk 0:02:57.4]} 4... g6 {[%clk 0:02:52.8]} 5. g3 {[%clk
0:02:55]} 5... Nc6 {[%clk 0:02:53.3]} 6. Bg2 {[%clk 0:02:54.4]} 6... Bg7 {[%clk
0:02:54]} 7. O-O {[%clk 0:02:53.4]} 7... O-O {[%clk 0:02:54]} 8. e3 {[%clk
0:02:42.6]} 8... Nxd4 {[%clk 0:02:45.5]} 9. Qxd4 {[%clk 0:02:42.3]} 9... d6
{[%clk 0:02:43.7]} 10. Qh4 {[%clk 0:02:30.8]} 10... a5 {[%clk 0:01:58.8]} 11.
Nc3 {[%clk 0:02:27.6]} 11... Nd7 {[%clk 0:01:55.5]} 12. Bd2 {[%clk 0:02:24]}
12... Nc5 {[%clk 0:01:55.8]} 13. b3 {[%clk 0:02:04]} 13... Be6 {[%clk
0:01:26.1]} 14. Rad1 {[%clk 0:01:59.5]} 14... Bf6 {[%clk 0:01:18]} 15. Qf4
{[%clk 0:01:52.9]} 15... Be5 {[%clk 0:01:16.3]} 16. Qf3 {[%clk 0:01:44.8]} 16...
Rb8 {[%clk 0:00:55.3]} 17. h3 {[%clk 0:01:36.4]} 17... Bg7 {[%clk 0:00:51.3]}
18. Nb5 {[%clk 0:01:30.3]} 18... Qb6 {[%clk 0:00:49.9]} 19. Bc3 {[%clk
0:01:02.6]} 19... a4 {[%clk 0:00:28.1]} 20. Bxg7 {[%clk 0:00:57.2]} 20... Kxg7
{[%clk 0:00:26.2]} 21. Rb1 {[%clk 0:00:51.5]} 21... axb3 {[%clk 0:00:26]} 22.
axb3 {[%clk 0:00:52.4]} 22... f5 {[%clk 0:00:19.5]} 23. Qd1 {[%clk 0:00:45.8]}
23... Ra8 {[%clk 0:00:18.6]} 24. Qd4+ {[%clk 0:00:43.8]} 24... Kg8 {[%clk
0:00:18.3]} 25. Bd5 {[%clk 0:00:32.4]} 25... Bxd5 {[%clk 0:00:17.8]} 26. Qxd5+
{[%clk 0:00:33.3]} 26... Kg7 {[%clk 0:00:17]} 27. Nd4 {[%clk 0:00:31.4]} 27...
e5 {[%clk 0:00:16.1]} 28. b4 {[%clk 0:00:29.2]} 28... exd4 {[%clk 0:00:13.5]}
29. bxc5 {[%clk 0:00:29.1]} 29... Qxc5 {[%clk 0:00:14.1]} 30. Rxb7+ {[%clk
0:00:29]} 30... Kh8 {[%clk 0:00:13]} 31. Qxd4+ {[%clk 0:00:24.3]} 31... Qxd4
{[%clk 0:00:12.8]} 32. exd4 {[%clk 0:00:25.2]} 32... Ra4 {[%clk 0:00:12.8]} 33.
Rc1 {[%clk 0:00:24.9]} 33... Rc8 {[%clk 0:00:12.5]} 34. Rd7 {[%clk 0:00:22.6]}
34... Raxc4 {[%clk 0:00:11.7]} 35. Rxc4 {[%clk 0:00:23.5]} 35... Rxc4 {[%clk
0:00:11.9]} 36. Rxd6 {[%clk 0:00:24.1]} 36... Kg7 {[%clk 0:00:12.5]} 37. Rd7+
{[%clk 0:00:22.7]} 37... Kf6 {[%clk 0:00:12.9]} 38. d5 {[%clk 0:00:20.2]} 38...
Rd4 {[%clk 0:00:12.8]} 39. Kg2 {[%clk 0:00:20.2]} 39... h6 {[%clk 0:00:10.8]}
40. h4 {[%clk 0:00:15.5]} 40... g5 {[%clk 0:00:11]} 41. h5 {[%clk 0:00:14.6]}
41... Ke5 {[%clk 0:00:11.3]} 42. Rh7 {[%clk 0:00:13.6]} 42... Rxd5 {[%clk
0:00:10.9]} 43. Rxh6 {[%clk 0:00:14.2]} 43... f4 {[%clk 0:00:11.1]} 44. g4
{[%clk 0:00:10.1]} 44... Rd3 {[%clk 0:00:10.7]} 45. Ra6 {[%clk 0:00:08.8]} 45...
f3+ {[%clk 0:00:10.3]} 46. Kg3 {[%clk 0:00:08.8]} 46... Rd6 {[%clk 0:00:10.1]}
47. Rxd6 {[%clk 0:00:08.1]} 47... Kxd6 {[%clk 0:00:09.9]} 48. Kxf3 {[%clk
0:00:09]} 1-0

[Event "Early-Titled-Tuesday-Blitz-May-07-2024"]
[Site "Chess.com"]
[Date "2024.05.07"]
[Round "8"]
[White "MasterKroket"]
[Black "Elegance_Riks"]
[Result "0-1"]
[WhiteElo "2509"]
[BlackElo "2734"]
[TimeControl "180+1"]
[EndTime "9:34:59 PDT"]
[Termination "Elegance_Riks won by resignation"]

1. e4 {[%clk 0:02:56.6]} 1... e6 {[%clk 0:02:59.5]} 2. d4 {[%clk 0:02:56.4]}
2... d5 {[%clk 0:02:59.9]} 3. Nc3 {[%clk 0:02:56.4]} 3... Bb4 {[%clk 0:02:59.3]}
4. e5 {[%clk 0:02:56.4]} 4... c5 {[%clk 0:02:59.1]} 5. a3 {[%clk 0:02:56.8]}
5... Bxc3+ {[%clk 0:02:59.3]} 6. bxc3 {[%clk 0:02:57.7]} 6... Ne7 {[%clk
0:02:59.8]} 7. Qg4 {[%clk 0:02:55]} 7... Qc7 {[%clk 0:02:41.8]} 8. Qxg7 {[%clk
0:02:54.5]} 8... Rg8 {[%clk 0:02:41.7]} 9. Qxh7 {[%clk 0:02:54.9]} 9... cxd4
{[%clk 0:02:42.1]} 10. Ne2 {[%clk 0:02:55.3]} 10... dxc3 {[%clk 0:02:42.1]} 11.
f4 {[%clk 0:02:54.9]} 11... Nbc6 {[%clk 0:02:41.1]} 12. Qd3 {[%clk 0:02:52.2]}
12... d4 {[%clk 0:02:40.8]} 13. Nxd4 {[%clk 0:02:41.6]} 13... Nxd4 {[%clk
0:02:40.1]} 14. Qxd4 {[%clk 0:02:41.7]} 14... Bd7 {[%clk 0:02:38.4]} 15. a4
{[%clk 0:02:25.3]} 15... Nf5 {[%clk 0:02:33.8]} 16. Qc4 {[%clk 0:02:07.8]} 16...
Bc6 {[%clk 0:02:27.9]} 17. Qxc3 {[%clk 0:02:00.4]} 17... O-O-O {[%clk
0:02:27.9]} 18. Ba3 {[%clk 0:01:47]} 18... Bxg2 {[%clk 0:02:25.6]} 19. Qxc7+
{[%clk 0:01:44.2]} 19... Kxc7 {[%clk 0:02:25.4]} 20. Rg1 {[%clk 0:01:32.1]}
20... Bxf1 {[%clk 0:02:13.3]} 21. Rxg8 {[%clk 0:01:28.5]} 21... Rxg8 {[%clk
0:02:12.6]} 22. Kxf1 {[%clk 0:01:28.8]} 22... Rg4 {[%clk 0:01:50.8]} 23. Bc1
{[%clk 0:01:22.7]} 23... Kc6 {[%clk 0:01:44.1]} 24. Ra3 {[%clk 0:01:17.3]} 24...
Rg8 {[%clk 0:01:18.7]} 25. Rd3 {[%clk 0:01:13]} 25... b6 {[%clk 0:01:14.2]} 26.
Kf2 {[%clk 0:01:05]} 26... Rh8 {[%clk 0:01:08.9]} 27. h3 {[%clk 0:01:01.9]}
27... Rg8 {[%clk 0:01:08.8]} 28. Be3 {[%clk 0:00:56.2]} 28... Kc7 {[%clk
0:00:59.6]} 29. c4 {[%clk 0:00:47.9]} 29... Kc6 {[%clk 0:00:58.5]} 30. a5 {[%clk
0:00:43.7]} 30... Rg3 {[%clk 0:00:54.9]} 31. axb6 {[%clk 0:00:37.6]} 31... axb6
{[%clk 0:00:53.9]} 32. h4 {[%clk 0:00:29.5]} 32... Rh3 {[%clk 0:00:47.8]} 33.
Rb3 {[%clk 0:00:18.5]} 33... Nxe3 {[%clk 0:00:45.5]} 34. Rxe3 {[%clk 0:00:18.4]}
34... Rxh4 {[%clk 0:00:44.7]} 35. Kf3 {[%clk 0:00:14.1]} 35... Kc5 {[%clk
0:00:43.3]} 36. Ke4 {[%clk 0:00:09.6]} 36... Rh1 {[%clk 0:00:39.4]} 37. Rb3
{[%clk 0:00:08.3]} 37... Re1+ {[%clk 0:00:38.5]} 38. Kd3 {[%clk 0:00:08.1]}
38... Rd1+ {[%clk 0:00:38.1]} 39. Ke4 {[%clk 0:00:07.2]} 39... Rd4+ {[%clk
0:00:38.2]} 40. Ke3 {[%clk 0:00:07.5]} 40... Rxc4 {[%clk 0:00:38.6]} 41. Rb1
{[%clk 0:00:08]} 41... b5 {[%clk 0:00:38.6]} 42. Rd1 {[%clk 0:00:06.8]} 42...
Kb6 {[%clk 0:00:37.9]} 43. Rd6+ {[%clk 0:00:06.6]} 43... Kb7 {[%clk 0:00:37.2]}
44. Rd7+ {[%clk 0:00:05.6]} 44... Rc7 {[%clk 0:00:37.4]} 45. Rd8 {[%clk
0:00:06.2]} 45... Kb6 {[%clk 0:00:35.8]} 46. Rd6+ {[%clk 0:00:04.1]} 46... Kc5
{[%clk 0:00:35.6]} 47. Kd3 {[%clk 0:00:04.3]} 47... b4 {[%clk 0:00:34.2]} 48.
Rd8 {[%clk 0:00:04]} 48... Kb5 {[%clk 0:00:33.6]} 49. Rb8+ {[%clk 0:00:03.2]}
49... Ka4 {[%clk 0:00:33.9]} 50. Ra8+ {[%clk 0:00:02.7]} 50... Kb3 {[%clk
0:00:34.2]} 51. Rb8 {[%clk 0:00:03.4]} 51... Ka3 {[%clk 0:00:34.3]} 52. Ra8+
{[%clk 0:00:03.6]} 52... Kb2 {[%clk 0:00:34.6]} 53. Rb8 {[%clk 0:00:04.3]} 53...
b3 {[%clk 0:00:34.9]} 54. Kd2 {[%clk 0:00:04.7]} 54... Ka2 {[%clk 0:00:31.4]}
0-1

[Event "Early-Titled-Tuesday-Blitz-May-07-2024"]
[Site "Chess.com"]
[Date "2024.05.07"]
[Round "8"]
[White "Let_it_be_1"]
[Black "LeoWin2012"]
[Result "0-1"]
[WhiteElo "2587"]
[BlackElo "2326"]
[TimeControl "180+1"]
[EndTime "9:34:59 PDT"]
[Termination "LeoWin2012 won on time"]

1. e4 {[%clk 0:03:00.9]} 1... e5 {[%clk 0:02:59.4]} 2. Nf3 {[%clk 0:03:00.9]}
2... Bc5 {[%clk 0:02:58.7]} 3. c3 {[%clk 0:02:55.5]} 3... Nf6 {[%clk 0:02:53.2]}
4. d4 {[%clk 0:02:55.2]} 4... exd4 {[%clk 0:02:47.8]} 5. cxd4 {[%clk 0:02:54.8]}
5... Bb4+ {[%clk 0:02:47.8]} 6. Bd2 {[%clk 0:02:54.9]} 6... Bxd2+ {[%clk
0:02:46.9]} 7. Nbxd2 {[%clk 0:02:54.6]} 7... d6 {[%clk 0:02:45.4]} 8. Bc4 {[%clk
0:02:43.2]} 8... O-O {[%clk 0:02:41.7]} 9. O-O {[%clk 0:02:42.8]} 9... Bg4
{[%clk 0:02:36.7]} 10. Qb3 {[%clk 0:02:31.5]} 10... Nbd7 {[%clk 0:02:24.2]} 11.
e5 {[%clk 0:02:27.3]} 11... dxe5 {[%clk 0:02:20.4]} 12. dxe5 {[%clk 0:02:23.8]}
12... Nc5 {[%clk 0:02:19.3]} 13. Qe3 {[%clk 0:02:12.7]} 13... Nfd7 {[%clk
0:02:14.3]} 14. b4 {[%clk 0:01:57.3]} 14... Ne6 {[%clk 0:02:04.1]} 15. h3 {[%clk
0:01:52.8]} 15... Bh5 {[%clk 0:01:56.5]} 16. Rad1 {[%clk 0:01:39.5]} 16... Qe7
{[%clk 0:01:52.3]} 17. a3 {[%clk 0:01:35.7]} 17... a6 {[%clk 0:01:38.3]} 18.
Rfe1 {[%clk 0:01:23.6]} 18... Rad8 {[%clk 0:01:34.3]} 19. Nf1 {[%clk 0:01:15.2]}
19... Nb6 {[%clk 0:01:34.1]} 20. Bb3 {[%clk 0:01:11]} 20... Rxd1 {[%clk
0:01:33.6]} 21. Rxd1 {[%clk 0:01:11.3]} 21... Rd8 {[%clk 0:01:34.5]} 22. Rxd8+
{[%clk 0:01:06.9]} 22... Qxd8 {[%clk 0:01:35.4]} 23. Ng3 {[%clk 0:01:06.1]}
23... Bg6 {[%clk 0:01:25.6]} 24. h4 {[%clk 0:01:01.4]} 24... Qd3 {[%clk
0:01:01.1]} 25. Bxe6 {[%clk 0:00:54.1]} 25... fxe6 {[%clk 0:00:56.6]} 26. Qg5
{[%clk 0:00:53.4]} 26... h6 {[%clk 0:00:46.7]} 27. Qe7 {[%clk 0:00:52.7]} 27...
Qxa3 {[%clk 0:00:40.8]} 28. Qd8+ {[%clk 0:00:30.4]} 28... Kh7 {[%clk 0:00:40.3]}
29. Qxc7 {[%clk 0:00:24]} 29... Qxb4 {[%clk 0:00:39.9]} 30. h5 {[%clk
0:00:24.2]} 30... Bd3 {[%clk 0:00:35.3]} 31. Qxb7 {[%clk 0:00:22.6]} 31... Nd5
{[%clk 0:00:32.7]} 32. Qf7 {[%clk 0:00:20.4]} 32... Qe7 {[%clk 0:00:23]} 33.
Qxe7 {[%clk 0:00:17.4]} 33... Nxe7 {[%clk 0:00:23.9]} 34. Nd4 {[%clk 0:00:17.6]}
34... a5 {[%clk 0:00:22.4]} 35. Nb3 {[%clk 0:00:13.9]} 35... a4 {[%clk
0:00:22.6]} 36. Na1 {[%clk 0:00:13.3]} 36... Nd5 {[%clk 0:00:21.7]} 37. f3
{[%clk 0:00:12.4]} 37... a3 {[%clk 0:00:21.5]} 38. Kf2 {[%clk 0:00:12.6]} 38...
a2 {[%clk 0:00:21.9]} 39. Ke1 {[%clk 0:00:11.6]} 39... Kg8 {[%clk 0:00:20.5]}
40. Kd2 {[%clk 0:00:11.6]} 40... Bb1 {[%clk 0:00:21]} 41. Ne2 {[%clk 0:00:09.2]}
41... Kf7 {[%clk 0:00:20.4]} 42. Nc3 {[%clk 0:00:09.3]} 42... Nxc3 {[%clk
0:00:20.7]} 43. Kxc3 {[%clk 0:00:09.4]} 43... g6 {[%clk 0:00:21.2]} 44. hxg6+
{[%clk 0:00:09]} 44... Kxg6 {[%clk 0:00:22.1]} 45. Kd4 {[%clk 0:00:08.4]} 45...
Kf5 {[%clk 0:00:22.3]} 46. g3 {[%clk 0:00:08.7]} 46... h5 {[%clk 0:00:22.4]} 47.
Nb3 {[%clk 0:00:05.2]} 47... Bc2 {[%clk 0:00:22.4]} 48. Na1 {[%clk 0:00:04.9]}
48... Bd1 {[%clk 0:00:22.3]} 49. f4 {[%clk 0:00:01.9]} 49... Kg4 {[%clk
0:00:22.6]} 50. Kc5 {[%clk 0:00:00.3]} 50... Bf3 {[%clk 0:00:21.4]} 0-1